[Event "EYCC O18-ch 2024"]
[Site "Prague"]
[Date "2024.08.23"]
[Round "2.2"]
[White "Chyzy, Jakub"]
[Black "Nastore, Pavel-Alexandru"]
[Result "1-0"]
[ECO "B52"]
[WhiteElo "2368"]
[BlackElo "2233"]
[Annotator "ChessBase"]
[PlyCount "113"]
[EventDate "2024.08.19"]
[EventType "swiss"]
[EventCountry "CZE"]
[SourceTitle "playchess.com"]
[Source "ChessBase"]
[SourceQuality "1"]
[TimeControl "5400+30"]

1. e4 {[%emt 0:01:36]} c5 {[%emt 0:00:27]} 2. Nf3 {[%emt 0:00:09]} d6 {[%emt 0:00:18]} 3. Bb5+ {[%emt 0:00:20]} Bd7 {[%emt 0:00:07]} 4. Bxd7+ {[%emt 0:00:07]} Nxd7 {[%emt 0:00:05]} 5. O-O {[%emt 0:00:07]} Ngf6 {[%emt 0:00:05]} 6. Qe2 {[%emt 0:00:12]} e6 {[%emt 0:00:22]} 7. b3 {[%emt 0:00:10]} Be7 {[%emt 0:01:28]} 8. Bb2 {[%emt 0:00:22]} Rc8 {[%emt 0:06:19]} 9. c4 {[%emt 0:00:50]} a6 {[%emt 0:00:26]} 10. Nc3 {[%emt 0:00:32]} O-O {[%emt 0:00:29]} 11. d4 {[%emt 0:00:12]} cxd4 {[%emt 0:00:15]} 12. Nxd4 {[%emt 0:00:06]} Qa5 {[%emt 0:00:48]} 13. Rad1 {[%emt 0:00:42]} Rfe8 {[%emt 0:00:32]} 14. Kh1 {[%emt 0:22:17]} Qh5 {[%emt 0:17:13]} 15. f3 {[%emt 0:00:49]} Bd8 {[%emt 0:06:27]} 16. g4 {[%emt 0:01:43]} Qh4 {[%emt 0:04:43]} 17. Rg1 {[%emt 0:01:40]} Ne5 {[%emt 0:07:26]} 18. Rg3 {[%emt 0:02:44]} Ng6 {[%emt 0:06:16]} 19. Bc1 {[%emt 0:14:25]} Ba5 {[%emt 0:07:45]} 20. Qg2 {[%emt 0:03:04]} Nd7 {[%emt 0:05:11]} 21. Nce2 {[%emt 0:00:55]} Qd8 {[%emt 0:01:37]} 22. f4 {[%emt 0:00:35]} Nc5 {[%emt 0:07:09]} 23. g5 {[%emt 0:17:05]} e5 {[%emt 0:02:53]} 24. Nf5 {[%emt 0:00:11]} exf4 {[%emt 0:00:34]} 25. Nxf4 {[%emt 0:00:11]} Nxe4 {[%emt 0:02:06]} 26. Nh5 {[%emt 0:21:18]} Nxg3+ {[%emt 0:01:55]} 27. Qxg3 {[%emt 0:03:21]} Qc7 {[%emt 0:05:42]} 28. Bb2 {[%emt 0:00:31]} Qc6+ {[%emt 0:11:02]} 29. Rd5 {[%emt 0:00:14]} Re5 {[%emt 0:00:08]} 30. Bxe5 {[%emt 0:01:03]} dxe5 {[%emt 0:00:05]} 31. Nhxg7 {[%emt 0:02:17]} Rd8 {[%emt 0:02:50]} 32. Nh5 {[%emt 0:05:56]} Rxd5 {[%emt 0:00:22]} 33. Nf6+ {[%emt 0:00:03]} Kh8 {[%emt 0:02:15]} 34. Nxd5 {[%emt 0:00:09]} Bd8 {[%emt 0:00:19]} 35. Nh6 {[%emt 0:00:51]} Kg7 {[%emt 0:00:26]} 36. Nf5+ {[%emt 0:00:39]} Kf8 {[%emt 0:01:41]} 37. Qh3 {[%emt 0:01:00]} Bxg5 {[%emt 0:00:19]} 38. Qxh7 {[%emt 0:00:05]} Qc5 {[%emt 0:00:53]} 39. h4 {[%emt 0:00:46]} Qf2 {[%emt 0:00:24]} 40. Qg7+ {[%emt 0:00:15]} Ke8 {[%emt 0:00:02]} 41. Qg8+ {[%emt 0:00:31]} Kd7 {[%emt 0:00:21]} 42. Qxf7+ {[%emt 0:00:39]} Ne7 {[%emt 0:00:19]} 43. hxg5 {[%emt 0:00:31]} Qf3+ {[%emt 0:00:48]} 44. Kg1 {[%emt 0:00:38]} Qg4+ {[%emt 0:00:55]} 45. Kh2 {[%emt 0:00:04]} Qe2+ {[%emt 0:00:23]} 46. Kg3 {[%emt 0:00:15]} Qe1+ {[%emt 0:00:08]} 47. Kf3 {[%emt 0:00:32]} Qh1+ {[%emt 0:00:54]} 48. Ke2 {[%emt 0:00:34]} Qg2+ {[%emt 0:00:41]} 49. Kd3 {[%emt 0:00:13]} Qf1+ {[%emt 0:00:34]} 50. Ke4 {[%emt 0:00:11]} Qg2+ {[%emt 0:00:29]} 51. Kxe5 {[%emt 0:00:10]} Qh2+ {[%emt 0:00:09]} 52. Kd4 {[%emt 0:00:23]} Qd2+ {[%emt 0:00:27]} 53. Ke4 {[%emt 0:00:21]} Qg2+ {[%emt 0:00:17]} 54. Kd3 {[%emt 0:00:15]} Qf1+ {[%emt 0:00:23]} 55. Kd4 {[%emt 0:00:11]} Qd1+ {[%emt 0:01:05]} 56. Kc5 {[%emt 0:00:10]} Qg1+ {[%emt 0:00:24]} 57. Nfe3 {[%emt 0:00:34]} 1-0

[Event "EYCC O18-ch 2024"]
[Site "Prague"]
[Date "2024.08.23"]
[Round "2.3"]
[White "Gasparyan, Erik R."]
[Black "Kienboeck, Benjamin"]
[Result "1-0"]
[ECO "D37"]
[WhiteElo "2350"]
[BlackElo "2214"]
[Annotator "RC"]
[PlyCount "51"]
[EventDate "2024.08.19"]
[EventType "swiss"]
[EventCountry "CZE"]
[SourceTitle "playchess.com"]
[Source "ChessBase"]
[SourceQuality "1"]
[TimeControl "5400+30"]

1. d4 {[%emt 0:00:17]} Nf6 {[%emt 0:00:14]} 2. c4 {[%emt 0:00:23]} e6 {[%emt 0:00:10]} 3. Nf3 {[%emt 0:00:25]} d5 {[%emt 0:00:09]} 4. Nc3 {[%emt 0:01:13]} dxc4 {[%emt 0:01:07]} 5. e4 {[%emt 0:00:58]} b5 {[%emt 0:00:25]} 6. e5 {[%emt 0:00:17]} Nd5 {[%emt 0:00:09]} 7. Nxb5 {[%emt 0:00:08]} Nb6 {[%emt 0:00:21]} 8. a4 {[%emt 0:00:14]} Qd7 {[%emt 0:07:13]} 9. Bd2 {[%emt 0:00:40]} Bb7 {[%emt 0:02:19]} 10. Be2 {[%emt 0:09:37]} Be7 {[%emt 0:01:20]} 11. Na3 {[%emt 0:05:11]} Nxa4 {[%emt 0:08:43]} 12. Nxc4 {[%emt 0:02:44]} Nb6 {[%emt 0:00:44]} 13. Na5 {[%emt 0:02:48]} Bd5 {[%emt 0:01:22]} 14. Qc2 {[%emt 0:02:24]} O-O {[%emt 0:03:19]} 15. O-O {[%emt 0:04:43]} h6 {[%emt 0:04:12]} 16. Rfc1 {[%emt 0:04:23]} Rc8 {[%emt 0:00:40]} 17. b4 {[%emt 0:06:40]} c6 {[%emt 0:05:20]} 18. Ne1 {[%emt 0:06:50]} Bg5 {[%emt 0:08:30]} 19. Ra3 {[%emt 0:02:06]} Qe7 {[%emt 0:09:01]} 20. f4 {[%emt 0:02:45]} Bxf4 {[%emt 0:03:00]} 21. Bxf4 {[%emt 0:00:07]} Qxb4 {[%emt 0:00:07]} 22. Qc3 {[%emt 0:01:59]} Qxc3 {[%emt 0:01:01]} 23. Raxc3 {[%emt 0:00:37]} Rc7 {[%emt 0:02:27]} 24. Nd3 {[%emt 0:00:41]} Kf8 {[%emt 0:00:22]} 25. Nb4 {[%emt 0:01:12]} N8d7 {[%emt 0:01:06]} 26. Bd2 {[%emt 0:00:47]} 1-0

[Event "EYCC O18-ch 2024"]
[Site "Prague"]
[Date "2024.08.23"]
[Round "2.3"]
[White "Zlatkov, Anton"]
[Black "Malek, Jan"]
[Result "0-1"]
[ECO "A13"]
[WhiteElo "2297"]
[BlackElo "2482"]
[Annotator "RC"]
[PlyCount "80"]
[EventDate "2024.08.19"]
[EventType "swiss"]
[EventCountry "CZE"]
[SourceTitle "playchess.com"]
[Source "ChessBase"]
[SourceQuality "1"]
[TimeControl "5400+30"]

1. c4 {[%emt 0:00:03]} e6 {[%emt 0:00:09]} 2. g3 {[%emt 0:00:08]} d5 {[%emt 0:00:05]} 3. Bg2 {[%emt 0:00:06]} dxc4 {[%emt 0:00:03]} 4. Nf3 {[%emt 0:00:47]} Nd7 {[%emt 0:00:08]} 5. Qa4 {[%emt 0:01:05]} a6 {[%emt 0:00:06]} 6. Qxc4 {[%emt 0:00:47]} b5 {[%emt 0:00:06]} 7. Qc2 {[%emt 0:00:36]} Bb7 {[%emt 0:00:06]} 8. O-O {[%emt 0:00:35]} Ngf6 {[%emt 0:01:01]} 9. d3 {[%emt 0:00:38]} c5 {[%emt 0:00:30]} 10. a4 {[%emt 0:00:19]} Be7 {[%emt 0:01:36]} 11. Nc3 {[%emt 0:00:12]} Bc6 {[%emt 0:00:06]} 12. e4 {[%emt 0:01:02]} O-O {[%emt 0:13:49]} 13. h3 {[%emt 0:08:43]} Rc8 {[%emt 0:07:42]} 14. axb5 {[%emt 0:08:37]} axb5 {[%emt 0:00:06]} 15. b3 {[%emt 0:02:01]} Qc7 {[%emt 0:07:33]} 16. Be3 {[%emt 0:03:46]} Rfd8 {[%emt 0:01:17]} 17. Ra2 {[%emt 0:14:30]} e5 {[%emt 0:09:46]} 18. Rfa1 {[%emt 0:01:26]} b4 {[%emt 0:00:11]} 19. Ne2 {[%emt 0:01:27]} Bb5 {[%emt 0:04:11]} 20. Nd2 {[%emt 0:03:27]} Nb8 {[%emt 0:03:16]} 21. Nc4 {[%emt 0:08:22]} Nc6 {[%emt 0:00:28]} 22. f4 {[%emt 0:03:14]} Nd7 {[%emt 0:04:46]} 23. h4 {[%emt 0:06:47]} Rb8 {[%emt 0:05:23]} 24. Bh3 {[%emt 0:04:22]} Nb6 {[%emt 0:01:50]} 25. Nb2 {[%emt 0:03:07]} Qd6 {[%emt 0:03:42]} 26. Rc1 {[%emt 0:04:30]} Qg6 {[%emt 0:05:56]} 27. Kh2 {[%emt 0:08:27]} Qh5 {[%emt 0:01:52]} 28. Kg2 {[%emt 0:02:25]} Nd7 {[%emt 0:08:30]} 29. Nc4 {[%emt 0:01:58]} Nf6 {[%emt 0:00:10]} 30. fxe5 {[%emt 0:04:11]} Ng4 {[%emt 0:00:02]} 31. Bxg4 {[%emt 0:01:57]} Qxg4 {[%emt 0:00:02]} 32. Bf4 {[%emt 0:00:07]} Bxc4 {[%emt 0:06:14]} 33. Qxc4 {[%emt 0:02:07]} Nd4 {[%emt 0:00:12]} 34. Nxd4 {[%emt 0:02:16]} Rxd4 {[%emt 0:00:02]} 35. Qa6 {[%emt 0:02:02]} Rbd8 {[%emt 0:00:05]} 36. Rd2 {[%emt 0:01:19]} Bxh4 {[%emt 0:06:00]} 37. e6 {[%emt 0:00:07]} fxe6 {[%emt 0:00:04]} 38. Rxc5 {[%emt 0:01:10]} Rxe4 {[%emt 0:00:31]} 39. Bc7 {[%emt 0:00:41]} Re3 {[%emt 0:00:48]} 40. Qc4 {[%emt 0:00:34]} Rxg3+ {[%emt 0:00:34]} 0-1

[Event "EYCC O18-ch 2024"]
[Site "Prague"]
[Date "2024.08.23"]
[Round "2.4"]
[White "Rozen, Eytan"]
[Black "Farokhi, Keyvan"]
[Result "1/2-1/2"]
[ECO "A13"]
[WhiteElo "2478"]
[BlackElo "2307"]
[Annotator "TA"]
[PlyCount "141"]
[EventDate "2024.08.19"]
[EventType "swiss"]
[EventCountry "CZE"]
[SourceTitle "playchess.com"]
[Source "ChessBase"]
[SourceQuality "1"]
[TimeControl "5400+30"]

{[%evp 43,141,-8,0,0,0,0,0,-10,-8,-37,-46,-43,-31,-47,0,0,0,0,11,8,6,0,0,0,0,0,0,-3,-4,-10,-12,-3,0,0,0,0,14,10,9,13,8,8,8,8,10,0,0,0,27,27,26,5,33,33,40,40,40,37,37,37,51,51,51,0,51,37,37,37,51,37,51,51,51,51,51,33,51,34,35,35,51,0,0,0,0,0,0,0,0,-8,-8,-8,-8,-8,-8,-8,-8,-8,-8,-8]} 1. c4 {[%emt 0:00:03]} e6 {[%emt 0:00:08]} 2. Nf3 {[%emt 0:00:40]} Nf6 {[%emt 0:00:09]} 3. b3 {[%emt 0:01:26]} d5 {[%emt 0:00:58]} 4. Bb2 {[%emt 0:00:29]} Be7 {[%emt 0:00:54]} 5. e3 {[%emt 0:00:23]} O-O {[%emt 0:02:42]} 6. Nc3 {[%emt 0:02:36]} c5 {[%emt 0:02:49]} 7. cxd5 {[%emt 0:00:37]} exd5 {[%emt 0:00:09]} 8. d4 {[%emt 0:01:34]} Nc6 {[%emt 0:02:24]} 9. Be2 {[%emt 0:01:49]} Bg4 {[%emt 0:09:21]} 10. dxc5 {[%emt 0:01:23]} Bxc5 {[%emt 0:00:07]} 11. O-O {[%emt 0:00:18]} a6 {[%emt 0:02:05]} 12. h3 {[%emt 0:01:48] D32: Tarrasch Defence: Sidelines and lines without g3.} Bh5 {[%emt 0:06:18]} 13. Na4 {[%emt 0:10:09]} Ba7 {[%emt 0:00:17]} 14. Bxf6 {[%emt 0:00:30]} Qxf6 {[%emt 0:00:30]} 15. Qxd5 {[%emt 0:00:30]} Bg6 {[%emt 0:00:30]} 16. Qg5 {[%emt 0:00:30]} Qxg5 {[%emt 0:08:23]} 17. Nxg5 {[%emt 0:06:10]} Rfd8 $146 {[%emt 0:11:46]} ({Predecessor:} 17... Rac8 18. Bf3 b5 19. Nb2 Nb4 20. Be4 Nc2 21. Rac1 Nxe3 22. Rfe1 Bxe4 23. Nxe4 Nc2 {½-½ Hartofylakas,S (1911)-Stamatiou,R (2142) GRE-ch U18 Larisa 2023 (3)}) 18. Rac1 {[%emt 0:09:14]} Nb4 19. Rfd1 {[%emt 0:00:23]} Rxd1+ {[%emt 0:07:30]} 20. Rxd1 {[%emt 0:04:47]} h6 {[%emt 0:06:06]} 21. Nf3 {[%emt 0:02:49]} Nxa2 {[%emt 0:07:19]} 22. Rd2 Nb4 {[%emt 0:01:40]} 23. Ne5 {[%emt 0:01:26]} b5 24. Nc3 {[%emt 0:02:39]} Bf5 {[%emt 0:01:50]} 25. Nd5 Nxd5 {[%emt 0:01:01]} 26. Rxd5 {[%emt 0:02:38]} (26. Bf3 $5) 26... Be6 {[%emt 0:00:26]} 27. Rd6 {[%emt 0:00:00]} Bc5 {[%emt 0:00:52]} (27... Bxb3 $6 28. Rxa6 Bd5 29. Ra5 $14 (29. Bxb5 Bb8 $14)) 28. Rc6 {[%emt 0:00:35]} Be7 (28... Bf8 $15 29. Rb6 Rc8 (29... Bxb3 30. Bf3 $11)) 29. Bf3 $1 $11 {[%emt 0:00:30]} Rc8 {[%emt 0:06:34]} (29... Bxb3 $2 {perishes.} 30. Rc3 Rd8 31. Rxb3 $18) 30. Rxa6 {[%emt 0:00:30]} Bxb3 {[%emt 0:00:10]} 31. Rb6 {[%emt 0:02:11]} Bc4 {[%emt 0:05:19]} 32. Rb7 {[%emt 0:04:03]} Bd6 {[%emt 0:01:07]} 33. Nc6 {[%emt 0:01:25]} g6 {[%emt 0:05:42]} 34. g3 {[%emt 0:02:33]} Kg7 {[%emt 0:00:37]} 35. Kg2 {[%emt 0:01:02]} Rc7 {[%emt 0:00:26]} 36. Rb6 {[%emt 0:00:55]} Bc5 {[%emt 0:01:08]} 37. Rb8 {[%emt 0:00:05]} Rd7 {[%emt 0:00:15]} 38. Ne5 {[%emt 0:02:53]} Rd2 {[%emt 0:00:10]} 39. Kg1 $1 {[%emt 0:00:50]} Bd6 {[%emt 0:06:40]} 40. Nxc4 {[%emt 0:01:28]} bxc4 {[%emt 0:00:02]} 41. Rc8 {[%emt 0:00:30]} Rc2 {[%emt 0:00:13]} 42. Be4 {[%emt 0:03:42]} Rc1+ {[%emt 0:00:10]} 43. Kg2 {[%emt 0:00:02]} c3 {[%emt 0:00:43]} 44. Rc6 {[%emt 0:03:53]} Be5 {[%emt 0:02:18]} 45. f4 {[%emt 0:00:26]} Bb8 {[%emt 0:00:53]} 46. Kf2 {[%emt 0:03:11]} h5 {[%emt 0:00:33]} 47. Bd5 {[%emt 0:02:32]} Rd1 {[%emt 0:03:19]} 48. Bb3 {[%emt 0:00:55]} Rc1 {[%emt 0:00:16]} 49. h4 {[%emt 0:01:51]} c2 {[%emt 0:01:24]} 50. Bxc2 {[%emt 0:01:01]} Ba7 {[%emt 0:00:39]} 51. Ke2 {[%emt 0:00:35]} Rg1 {[%emt 0:00:31]} 52. Rc7 {[%emt 0:01:06]} Bb6 {[%emt 0:00:02]} 53. Rc6 {[%emt 0:00:39]} Ba7 {[%emt 0:00:12]} 54. Kf3 {[%emt 0:01:08]} Re1 {[%emt 0:00:16]} 55. Rc3 {[%emt 0:00:58]} Bb6 {[%emt 0:00:12]} 56. Bb3 {[%emt 0:00:42]} Rf1+ {[%emt 0:01:21]} 57. Ke2 {[%emt 0:00:38]} Rg1 {[%emt 0:00:19]} 58. Kf2 $1 {[%emt 0:02:46]} Rb1 {[%emt 0:00:06]} 59. Rd3 {[%emt 0:00:38]} Bc5 {[%emt 0:00:23]} 60. Bd5 {[%emt 0:00:47]} Bb4 {[%emt 0:01:14]} 61. Kf3 {[%emt 0:02:24]} Rb2 {[%emt 0:00:38]} 62. Ke4 {[%emt 0:01:06]} (62. Rd1 $14) 62... Be1 $11 {[%emt 0:00:43]} 63. Ra3 {[%emt 0:00:07]} f5+ {[%emt 0:00:25]} 64. Ke5 {[%emt 0:00:29]} Rb8 {[%emt 0:00:23]} 65. Ra7+ {[%emt 0:02:24]} Kh6 {[%emt 0:00:02]} 66. Bf7 {[%emt 0:00:16]} Rf8 {[%emt 0:00:29]} 67. e4 {[%emt 0:04:13]} (67. Kf6 Bxg3 68. Ke5 Bxh4 $17) 67... fxe4 {[%emt 0:00:07]} 68. Kxe4 {[%emt 0:01:34]} Bxg3 {[%emt 0:00:05]} 69. f5 {[%emt 0:00:18]} gxf5+ {[%emt 0:00:08]} 70. Kf3 {[%emt 0:01:34]} Bxh4 {[%emt 0:01:21]} 71. Ra6+ {[%emt 0:00:04]} 1/2-1/2

[Event "EYCC O18-ch 2024"]
[Site "Prague"]
[Date "2024.08.23"]
[Round "2.4"]
[White "Shamatava, Nikolozi"]
[Black "Palczert, Matyas"]
[Result "1-0"]
[ECO "C82"]
[WhiteElo "2196"]
[BlackElo "2341"]
[Annotator "ChessBase"]
[PlyCount "85"]
[EventDate "2024.08.19"]
[EventType "swiss"]
[EventCountry "CZE"]
[SourceTitle "playchess.com"]
[Source "ChessBase"]
[SourceQuality "1"]
[TimeControl "5400+30"]

1. e4 {[%emt 0:00:05]} e5 {[%emt 0:00:10]} 2. Nf3 {[%emt 0:00:06]} Nc6 {[%emt 0:00:08]} 3. Bb5 {[%emt 0:00:05]} a6 {[%emt 0:00:10]} 4. Ba4 {[%emt 0:00:06]} Nf6 {[%emt 0:00:13]} 5. O-O {[%emt 0:00:06]} Nxe4 {[%emt 0:00:22]} 6. d4 {[%emt 0:00:17]} b5 {[%emt 0:00:09]} 7. Bb3 {[%emt 0:00:05]} d5 {[%emt 0:00:13]} 8. dxe5 {[%emt 0:00:04]} Be6 {[%emt 0:00:17]} 9. c3 {[%emt 0:00:15]} Bc5 {[%emt 0:00:32]} 10. Bc2 {[%emt 0:01:21]} O-O {[%emt 0:00:29]} 11. Nbd2 {[%emt 0:00:27]} Bf5 {[%emt 0:00:32]} 12. Nb3 {[%emt 0:04:29]} Bg6 {[%emt 0:00:51]} 13. Nfd4 {[%emt 0:04:46]} Bxd4 {[%emt 0:01:09]} 14. cxd4 {[%emt 0:00:25]} a5 {[%emt 0:04:28]} 15. Be3 {[%emt 0:24:12]} a4 {[%emt 0:00:56]} 16. Nd2 {[%emt 0:00:58]} Nb4 {[%emt 0:13:03]} 17. Bb1 {[%emt 0:01:36]} a3 {[%emt 0:13:11]} 18. Qc1 {[%emt 0:09:56]} axb2 {[%emt 0:11:07]} 19. Qxb2 {[%emt 0:00:08]} Nc6 {[%emt 0:00:28]} 20. Bxe4 {[%emt 0:05:38]} dxe4 {[%emt 0:00:43]} 21. Rfc1 {[%emt 0:00:39]} Ne7 {[%emt 0:07:50]} 22. Qxb5 {[%emt 0:01:52]} Nf5 {[%emt 0:01:06]} 23. Qc5 {[%emt 0:04:35]} h6 {[%emt 0:10:58]} 24. a4 {[%emt 0:01:39]} Qh4 {[%emt 0:05:08]} 25. a5 {[%emt 0:06:09]} Ra6 {[%emt 0:01:03]} 26. Qxc7 {[%emt 0:02:21]} Qg4 {[%emt 0:07:11]} 27. h3 {[%emt 0:02:03]} Qh5 {[%emt 0:00:16]} 28. Nf1 {[%emt 0:07:32]} Rfa8 {[%emt 0:00:30]} 29. d5 {[%emt 0:01:05]} Kh7 {[%emt 0:01:24]} 30. Rc6 {[%emt 0:02:04]} Nxe3 {[%emt 0:02:30]} 31. Nxe3 {[%emt 0:05:09]} R6a7 {[%emt 0:00:19]} 32. Qd6 {[%emt 0:03:05]} Rxa5 {[%emt 0:00:15]} 33. Rxa5 {[%emt 0:00:07]} Rxa5 {[%emt 0:00:04]} 34. e6 {[%emt 0:02:28]} fxe6 {[%emt 0:03:17]} 35. Qxe6 {[%emt 0:00:41]} Qg5 {[%emt 0:01:34]} 36. Qg4 {[%emt 0:05:28]} Ra1+ {[%emt 0:00:56]} 37. Kh2 {[%emt 0:00:07]} Qe5+ {[%emt 0:01:04]} 38. Qg3 {[%emt 0:00:05]} Qe8 {[%emt 0:00:32]} 39. Rc7 {[%emt 0:01:05]} Ra2 {[%emt 0:01:42]} 40. Nf5 {[%emt 0:00:37]} Kh8 {[%emt 0:01:17]} 41. Nd6 {[%emt 0:00:21]} e3 {[%emt 0:00:30]} 42. Nxe8 {[%emt 0:00:19]} exf2 {[%emt 0:00:04]} 43. Qxg6 {[%emt 0:00:13]} 1-0

[Event "EYCC O18-ch 2024"]
[Site "Prague"]
[Date "2024.08.23"]
[Round "2.5"]
[White "Slagboom, Leandro"]
[Black "Vilimek, Vit"]
[Result "1-0"]
[ECO "A16"]
[WhiteElo "2331"]
[BlackElo "2203"]
[Annotator "RC"]
[PlyCount "49"]
[EventDate "2024.08.19"]
[EventType "swiss"]
[EventCountry "CZE"]
[SourceTitle "playchess.com"]
[Source "ChessBase"]
[SourceQuality "1"]
[TimeControl "5400+30"]

1. c4 {[%emt 0:00:03]} Nf6 {[%emt 0:00:06]} 2. Nc3 {[%emt 0:00:10]} g6 {[%emt 0:00:19]} 3. e4 {[%emt 0:00:06]} Nc6 {[%emt 0:00:02]} 4. d4 {[%emt 0:01:07]} e5 {[%emt 0:01:46]} 5. d5 {[%emt 0:08:37]} Nd4 {[%emt 0:00:39]} 6. Nf3 {[%emt 0:04:01]} d6 {[%emt 0:22:49]} 7. Nxd4 {[%emt 0:01:18]} exd4 {[%emt 0:00:45]} 8. Qxd4 {[%emt 0:00:05]} Bg7 {[%emt 0:00:02]} 9. Bg5 {[%emt 0:05:36]} O-O {[%emt 0:02:07]} 10. Qd2 {[%emt 0:01:26]} Qe8 {[%emt 0:09:44]} 11. f3 {[%emt 0:09:20]} Bd7 {[%emt 0:22:37]} 12. Bd3 {[%emt 0:08:14]} Qe5 {[%emt 0:05:36]} 13. O-O {[%emt 0:02:48]} Nh5 {[%emt 0:01:34]} 14. g4 {[%emt 0:05:21]} Nf6 {[%emt 0:02:14]} 15. Rae1 {[%emt 0:03:08]} h5 {[%emt 0:05:55]} 16. Bf4 {[%emt 0:01:40]} Qe7 {[%emt 0:03:42]} 17. g5 {[%emt 0:05:56]} Nh7 {[%emt 0:01:06]} 18. Kh1 {[%emt 0:00:36]} f6 {[%emt 0:07:10]} 19. gxf6 {[%emt 0:00:52]} Qxf6 {[%emt 0:01:31]} 20. Be3 {[%emt 0:01:25]} Qh4 {[%emt 0:02:04]} 21. Rf2 {[%emt 0:07:02]} Qh3 {[%emt 0:03:11]} 22. Rg1 {[%emt 0:04:43]} Be8 {[%emt 0:05:00]} 23. Ne2 {[%emt 0:04:44]} g5 {[%emt 0:01:28]} 24. Bxg5 {[%emt 0:01:45]} Rxf3 25. Rxf3 1-0

[Event "EYCC O18-ch 2024"]
[Site "Prague"]
[Date "2024.08.23"]
[Round "2.5"]
[White "Eilenberg, Jonas"]
[Black "Macias Pino, Diego"]
[Result "0-1"]
[ECO "A57"]
[WhiteElo "2285"]
[BlackElo "2477"]
[Annotator "TA"]
[PlyCount "60"]
[EventDate "2024.08.19"]
[EventType "swiss"]
[EventCountry "CZE"]
[SourceTitle "playchess.com"]
[Source "ChessBase"]
[SourceQuality "1"]
[TimeControl "5400+30"]

{[%evp 11,60,28,41,32,41,43,35,21,31,29,25,0,12,-65,-50,-75,-34,-34,-41,-37,-26,-41,-9,-11,0,-61,-69,-46,-14,-8,-8,-6,0,0,0,-83,-75,-74,-80,-82,-66,-468,-448,-591,-574,-1172,-1172,-1090,-1071,-5257,-5197]} 1. d4 {[%emt 0:00:03]} Nf6 {[%emt 0:00:07]} 2. c4 {[%emt 0:00:07]} c5 {[%emt 0:00:39]} 3. d5 {[%emt 0:00:07]} b5 {[%emt 0:00:46]} 4. cxb5 {[%emt 0:00:35]} a6 {[%emt 0:00:07]} 5. e3 {[%emt 0:00:05]} e6 {[%emt 0:00:28]} 6. dxe6 {[%emt 0:02:53]} fxe6 {[%emt 0:00:08]} 7. Nc3 {[%emt 0:00:55]} d5 {[%emt 0:03:30]} 8. Nf3 {[%emt 0:00:08]} Be7 {[%emt 0:05:13]} 9. Bd3 {[%emt 0:05:41] White is slightly better.} O-O {[%emt 0:08:37]} 10. O-O {[%emt 0:00:16]} axb5 {[%emt 0:08:42]} 11. Nxb5 {[%emt 0:00:57]} Nc6 {[%emt 0:00:20]} 12. Re1 {[%emt 0:15:12]} (12. Nc3 $11) 12... e5 $15 {[%emt 0:05:49] White must now prevent ...e4.} 13. e4 {[%emt 0:06:13]} Nxe4 {[%emt 0:01:25]} 14. Bxe4 {[%emt 0:12:40]} dxe4 {[%emt 0:00:38]} 15. Nd2 {[%emt 0:08:36]} Ba6 {[%emt 0:05:08]} 16. Nc3 $1 {[%emt 0:05:35]} Nb4 {[%emt 0:01:51]} 17. Ndxe4 {[%emt 0:01:16]} Bd3 {[%emt 0:08:27]} 18. Re3 {[%emt 0:02:10]} (18. Be3 $1 $11 c4 19. Qh5) 18... c4 {[%emt 0:01:50][%mdl 1024] Black has compensation.} 19. Qh5 {[%emt 0:07:46] Rh3 would now be deadly.} Qd4 {[%emt 0:05:53] Hoping for ...Bxe4.} (19... Rf7 $5 20. Rh3 g6 21. Qxe5 Nc6 $15) 20. Qg4 {[%emt 0:04:15]} Ra6 {[%emt 0:04:00] Repels Qe6+. ...Rg6 is the strong threat. Active counter play!} 21. Rf3 {[%emt 0:09:30]} Rg6 {[%emt 0:11:23] Some like it hot} 22. Rxf8+ {[%emt 0:00:14]} Bxf8 {[%emt 0:00:04] This pair of bishops is nice.} 23. Qf3 {[%emt 0:00:19]} (23. Bg5 $11) 23... Nc2 $40 {[%emt 0:00:59][%mdl 128] White is in trouble.} 24. Be3 {[%emt 0:00:10]} Bxe4 {[%emt 0:02:35]} 25. Nxe4 {[%emt 0:00:34]} Qd3 {[%emt 0:05:18]} 26. Ng5 $2 {[%emt 0:10:45][%mdl 8192] This costs White the game.} Rxg5 $19 {[%emt 0:03:15] Black is clearly winning.} ({Not} 26... Nxa1 27. Qf7+ Kh8 28. Qxf8#) 27. Rd1 {[%emt 0:00:01] [#]} e4 {[%emt 0:00:17]} 28. Qxf8+ {[%emt 0:00:05]} Kxf8 {[%emt 0:00:02]} 29. Rxd3 {[%emt 0:00:08]} cxd3 {[%emt 0:00:04]} 30. Bxg5 {[%emt 0:00:06] [#]} e3 $1 {[%emt 0:00:05][%mdl 512] Weighted Error Value: White=0.87/Black=0.07 (flawless) .  Loses game:     	White=1     	---        Mistake:       	White=3     	---        Inaccurate:     	White=2     	Black=3      OK:         	White=6     	Black=8      Best:        	White=5     	Black=4      Strong:       	White=1     	---} 0-1